bitfinex/quotes_ETHUSD_20240701
["timestamp","ask_amount","ask_price","bid_price","bid_amount"]
[1719853386874,2.3904,3473.3,3472.8,0.816]
[1719853387082,0.04652714,3473.2,3472.8,0.816]
[1719853387388,2.45241139,3473.3,3472.8,0.816]
[1719853387576,0.04651565,3473.1,3472.6,0.816]
[1719853387892,2.2713,3473.1,3472.6,0.816]
[1719853388095,0.04652014,3473.0,3472.6,0.816]
[1719853388618,2.2713,3472.8,3471.5,2.88053]
[1719853388762,2.2713,3472.6,3471.8,0.816]
[1719853389077,0.10844521,3472.5,3471.8,0.816]
[1719853389580,0.10844521,3472.5,3471.6,2.88051]
[1719853389779,0.10844521,3472.5,3471.9,0.816]
[1719853391813,0.10844521,3472.5,3471.6,2.88051]
[1719853392119,2.2713,3472.6,3471.7,3.691444]
[1719853392278,2.2713,3472.6,3471.8,2.93788939]
[1719853393502,2.4217,3473.3,3472.2,2.88]
[1719853393711,1.732,3473.8,3472.0,5.31753]
[1719853393712,2.4217,3473.1,3472.0,5.31753]
[1719853394021,2.48371139,3473.0,3472.1,0.24374]
[1719853394327,2.52847755,3473.0,3472.1,0.24374]
[1719853395604,2.52847755,3473.0,3472.2,0.05759412]
[1719853397205,2.52847755,3473.0,3472.2,0.90750853]
[1719853398111,2.52847755,3473.0,3472.2,3.78751853]
[1719853399807,2.52847755,3473.0,3472.2,0.84991441]
[1719853400009,2.52847755,3473.0,3472.0,2.88013]
[1719853400844,2.52847755,3473.0,3471.8,2.88029]
[1719853401436,2.52847755,3473.0,3471.9,2.88019]
[1719853401607,2.52847755,3473.0,3472.0,0.8831314]
[1719853401816,2.52847755,3473.0,3472.1,0.05759414]
[1719853402450,2.52847755,3473.0,3472.0,3.7632514]
[1719853402608,2.52847755,3473.0,3472.0,0.8831314]
[1719853402808,2.52847755,3473.0,3471.8,2.88032]
[1719853403723,2.52847755,3473.0,3471.9,2.88024]
[1719853404619,2.52847755,3473.0,3472.0,2.88018]
[1719853404829,2.52847755,3473.0,3472.1,2.93763416]
[1719853405763,2.52847755,3473.0,3471.9,2.88021]
[1719853406075,2.52847755,3473.0,3472.0,0.576051]
[1719853406868,2.52847755,3473.0,3472.0,3.456221]
[1719853408243,2.52847755,3473.0,3472.0,0.576051]
[1719853408441,2.9539,3472.9,3471.6,5.76094]
[1719853408641,2.311,3472.7,3471.6,5.76094]
[1719853408840,0.55,3472.9,3471.6,2.88045]
[1719853408841,2.311,3472.5,3471.6,2.88045]
[1719853409045,0.0446851,3472.4,3471.7,0.576108]
[1719853410358,0.10669649,3472.4,3471.7,0.576108]
[1719853414076,0.10669649,3472.4,3471.8,0.814]
[1719853416670,2.3126,3472.3,3471.8,0.814]
[1719853416994,0.04460362,3472.2,3471.7,1.390108]
[1719853417326,0.04460362,3472.2,3471.8,0.3456688]
[1719853417807,2.35021139,3472.2,3471.2,2.8808]
[1719853418018,2.35021139,3472.2,3471.3,0.814]
[1719853418019,2.2882,3472.0,3471.3,0.814]
[1719853418427,0.04456782,3471.9,3471.3,0.814]
[1719853418587,0.04456782,3471.9,3471.4,0.61507]
[1719853419487,0.04456782,3471.9,3471.5,0.814]
[1719853421233,0.04456782,3471.9,3471.4,0.61507]
[1719853421234,0.04456782,3471.9,3471.7,0.814]
[1719853421395,0.04456782,3471.9,3471.8,0.05760096]
[1719853421582,2.3461,3472.2,3471.8,0.05760096]
[1719853421778,0.04447008,3471.9,3471.8,1.48275506]
[1719853422019,2.3461,3472.2,3471.8,1.4251541]
[1719853422387,0.04449308,3472.1,3471.8,1.48275446]
[1719853423534,0.04449308,3472.1,3471.8,4.36309446]
[1719853424035,2.4745,3472.4,3471.8,1.48275446]
[1719853424201,0.04448096,3472.0,3471.8,1.48275446]
[1719853424395,2.4745,3472.4,3471.9,0.43631945]
[1719853424615,0.04446946,3471.9,3471.8,0.87160036]
[1719853424815,2.4745,3472.4,3471.8,0.87160036]
[1719853425194,0.04451546,3472.3,3471.8,0.87160036]
[1719853425601,0.04451546,3472.3,3471.8,3.75193036]
[1719853427512,0.04451546,3472.3,3471.8,0.87160036]
[1719853428288,0.04451546,3472.3,3471.8,1.5348504]
[1719853428679,0.04451546,3472.3,3471.8,0.7208504]
[1719853428885,0.04451546,3472.3,3471.8,0.05760036]
[1719853429185,0.04451546,3472.3,3471.7,2.88042]
[1719853429621,0.04451546,3472.3,3471.5,2.88053]
[1719853429834,0.04451546,3472.3,3471.4,5.88681]
[1719853429835,0.10652685,3472.3,3471.4,1.42907]
[1719853429984,2.3706,3472.2,3471.4,1.42907]
[1719853430189,2.3162,3472.0,3471.4,1.42907]
[1719853430622,0.04296823,3471.9,3471.4,1.42907]
[1719853433401,0.10497962,3471.9,3471.0,2.88094]
[1719853433612,2.3158,3471.8,3471.1,0.814]
[1719853434010,0.04289713,3471.7,3471.1,0.814]
[1719853436490,0.10490852,3471.7,3470.8,2.88112]
[1719853436724,0.10490852,3471.7,3471.0,0.814]
[1719853436725,0.06201139,3471.7,3471.0,0.814]
[1719853437408,2.2821,3471.6,3470.7,5.2607]
[1719853437611,0.06201139,3471.5,3470.8,0.814]
[1719853437811,0.10478739,3471.5,3470.8,0.814]
[1719853437987,0.91878739,3471.5,3470.6,2.8813]
[1719853438184,2.2821,3471.4,3470.6,2.8813]
[1719853438588,0.04281757,3471.3,3470.6,2.8813]
[1719853439008,0.04281757,3471.3,3471.1,0.814]
[1719853440731,2.2821,3471.4,3471.1,0.814]
[1719853441039,0.04278283,3471.3,3471.1,0.814]
[1719853441406,0.06201139,3471.3,3470.5,2.88139]
[1719853441713,0.06201139,3471.3,3471.2,0.814]
[1719853442113,2.2821,3471.4,3471.2,0.814]
[1719853442464,0.04278283,3471.3,3471.2,0.814]
[1719853442945,2.2821,3471.4,3471.2,0.814]
[1719853443760,0.06201139,3472.0,3471.2,3.75237454]
[1719853443761,2.3792,3471.9,3471.2,3.75237454]
[1719853444062,2.3792,3471.9,3471.8,0.814]
[1719853446563,2.42060179,3471.9,3471.8,0.814]
[1719853446770,2.3792,3471.9,3471.8,0.814]
[1719853447063,2.42060179,3471.9,3471.8,0.814]
[1719853447562,2.42060179,3471.9,3471.3,0.37523745]
[1719853447865,2.42060179,3471.9,3471.7,0.814]
[1719853448562,0.06201139,3471.8,3471.7,0.814]
[1719853448928,0.10339652,3471.8,3471.0,2.88101]
[1719853449133,0.10339652,3471.8,3471.6,0.814]
[1719853449374,0.06201139,3471.8,3471.6,0.814]
[1719853450034,2.3792,3471.9,3471.6,0.814]
[1719853450469,0.04138513,3471.8,3471.6,0.814]
[1719853450966,2.3792,3471.9,3471.6,0.814]
[1719853451339,0.04140829,3471.8,3471.6,0.814]
[1719853451663,2.3792,3471.9,3471.6,0.814]
[1719853452057,0.04140571,3471.8,3471.6,0.814]
[1719853452446,2.3792,3471.9,3471.6,0.814]
[1719853452645,2.3792,3471.9,3471.8,0.814]
[1719853453043,2.3029,3472.4,3471.8,0.814]
[1719853453231,0.06201139,3472.3,3472.1,0.814]
[1719853453431,2.3029,3472.4,3472.1,0.814]
[1719853455661,2.3029,3472.4,3472.3,0.814]
[1719853458686,2.3029,3472.4,3472.1,0.814]
[1719853461602,0.04009347,3472.3,3472.1,0.814]
[1719853461773,0.04009347,3472.3,3472.2,0.814]
[1719853464767,3.06201139,3472.6,3472.2,0.814]
[1719853464967,0.0401578,3472.3,3472.2,0.814]
[1719853465177,3.06201139,3472.6,3472.2,0.814]
[1719853465384,0.0401578,3472.3,3472.2,0.814]
[1719853465571,3.06201139,3472.6,3472.2,0.814]
[1719853465787,0.04016552,3472.3,3472.2,0.814]
[1719853466097,3.06201139,3472.6,3472.2,0.814]
[1719853466280,0.04016552,3472.3,3472.2,0.814]
[1719853466484,3.61263253,3472.6,3472.0,0.814]
[1719853466680,0.04016552,3472.3,3472.0,0.814]
[1719853466999,0.04015402,3472.2,3472.0,0.814]
[1719853467495,3.06201139,3472.6,3472.0,0.814]
[1719853468000,0.04018851,3472.5,3472.0,0.814]
[1719853468949,0.04017702,3472.4,3472.0,0.814]
[1719853469250,0.06201139,3472.6,3472.0,0.814]
[1719853469395,0.04016552,3472.3,3472.0,0.814]
[1719853469595,3.06201139,3472.6,3472.0,0.814]
[1719853469795,0.04015402,3472.2,3471.6,5.17989]
[1719853469991,2.47881139,3472.5,3471.8,0.814]
[1719853469992,0.06201139,3472.4,3471.8,0.814]
[1719853470241,0.04014252,3472.1,3471.8,0.814]
[1719853470542,0.04013102,3472.0,3471.8,0.814]
[1719853470726,0.06201139,3472.4,3471.8,0.814]
[1719853470921,0.04016552,3472.3,3471.8,0.814]
[1719853473903,0.04016552,3472.3,3471.4,2.88064]
[1719853473904,2.4556,3472.2,3471.4,2.8806]
[1719853474105,0.04014252,3472.1,3471.7,0.814]
[1719853474441,0.10215391,3472.1,3471.5,0.804534]
[1719853474646,0.10215391,3472.1,3471.7,0.814]
[1719853475405,0.04014252,3472.1,3471.7,0.814]
[1719853475602,0.04014252,3472.1,3471.7,1.5519774]
[1719853475941,0.04014252,3472.1,3471.9,0.814]
[1719853484380,0.04014252,3472.1,3471.6,2.8805]
[1719853484381,0.04014252,3472.1,3471.7,0.814]
[1719853487297,0.10215391,3472.1,3471.4,2.88061]
[1719853487655,0.10215391,3472.1,3471.6,0.814]
[1719853487817,0.10215391,3472.1,3471.4,2.88061]
[1719853487818,0.10215391,3472.1,3471.8,0.814]
[1719853488366,0.10215391,3472.1,3471.6,0.814]
[1719853488769,0.10215391,3472.1,3471.4,2.88061]
[1719853488972,0.10215391,3472.1,3471.7,0.814]
[1719853489272,0.10215391,3472.1,3471.6,0.814]
[1719853494120,0.10215391,3472.1,3471.3,2.88075]
[1719853494426,2.2905,3472.0,3471.7,0.814]
[1719853494633,0.06201139,3471.9,3471.5,0.814]
[1719853494790,0.10211161,3471.9,3471.4,0.814]
[1719853497296,0.10211161,3471.9,3471.6,0.814]
[1719853504144,0.10211161,3471.9,3471.0,2.3008]
[1719853504145,0.34137277,3471.9,3471.0,2.3008]
[1719853504352,2.44701139,3471.8,3471.2,0.814]
[1719853504516,0.06201139,3471.7,3471.2,0.814]
[1719853504720,0.06201139,3471.7,3470.7,2.3442]
[1719853504721,2.385,3471.6,3470.7,2.3442]
[1719853505054,0.06201139,3471.5,3470.5,5.23039]
[1719853505258,0.10196109,3471.5,3470.9,0.814]
[1719853508654,0.10196109,3471.5,3471.1,0.814]
[1719853509852,0.10196109,3471.5,3471.4,0.814]
[1719853509853,0.0399497,3471.5,3471.4,0.814]
[1719853510047,2.3862,3471.8,3471.4,0.814]
[1719853510048,0.06201139,3471.7,3471.4,0.814]
[1719853510260,0.03994526,3471.5,3471.4,0.814]
[1719853510425,0.06201139,3471.7,3471.4,0.814]
[1719853510631,0.03994526,3471.5,3471.4,0.814]
[1719853510954,0.06201139,3471.7,3470.7,2.88119]
[1719853511162,2.2955,3471.4,3471.2,0.814]
[1719853511459,0.03992611,3471.3,3471.2,0.814]
[1719853513661,2.3917,3471.6,3471.2,0.814]
[1719853513830,2.3917,3471.6,3471.4,0.814]
[1719853514827,3.06201139,3472.0,3471.4,0.814]
[1719853515029,3.06201139,3472.0,3471.7,0.814]
[1719853515346,3.06201139,3472.0,3471.3,2.88071]
[1719853515347,3.06201139,3472.0,3471.5,0.814]
[1719853516134,3.06201139,3472.0,3471.9,0.814]
[1719853516331,3.0,3472.0,3471.9,0.814]
[1719853517148,3.0,3472.0,3471.4,2.3315]
[1719853517476,3.0,3472.0,3471.8,0.814]
[1719853517766,2.3651,3472.3,3471.8,0.814]
[1719853517929,0.06201139,3472.2,3471.8,0.814]
[1719853518731,0.06201139,3472.2,3472.0,0.814]
[1719853519333,2.42711139,3472.3,3472.0,0.814]
[1719853519534,0.06201139,3472.2,3471.5,2.93814615]
[1719853519759,0.06201139,3472.2,3471.8,0.814]
[1719853520361,0.06201139,3472.2,3471.6,0.814]
[1719853521630,0.03956714,3472.1,3471.6,0.814]
[1719853522267,0.03956714,3472.1,3471.1,5.25672]
[1719853522268,0.06201139,3472.0,3471.1,5.25672]
[1719853522425,2.32241139,3472.0,3471.5,0.814]
[1719853522625,0.03954414,3471.9,3471.5,0.814]
[1719853523169,0.03954414,3471.9,3471.3,0.814]
[1719853523621,0.58954414,3471.9,3470.8,5.17675]
[1719853523823,0.58954414,3471.9,3471.1,0.814]
[1719853523824,2.39521139,3471.8,3471.1,0.814]
[1719853524023,0.06201139,3471.7,3471.1,0.814]
[1719853524219,0.10154413,3471.7,3471.1,0.814]
[1719853524460,0.42301798,3471.7,3471.1,0.814]
[1719853525488,0.42301798,3471.7,3470.6,2.88127]
[1719853525768,0.38348524,3471.7,3471.0,0.814]
[1719853526271,0.03953024,3471.6,3471.0,0.814]
[1719853527452,0.10154163,3471.6,3471.0,0.814]
[1719853527969,2.4371,3471.5,3471.0,0.814]
[1719853528262,0.10151863,3471.4,3471.0,0.814]
[1719853530627,0.10151863,3471.4,3470.6,2.88127]
[1719853530870,0.10151863,3471.4,3471.0,0.814]
[1719853531041,0.10151863,3471.4,3470.5,2.4868]
[1719853531245,0.10151863,3471.4,3470.8,0.814]
[1719853532127,2.3455,3471.3,3470.2,5.26604]
[1719853532334,0.06201139,3471.2,3470.7,0.814]
[1719853532561,0.06201139,3471.2,3470.2,5.26604]
[1719853532880,0.03939037,3471.1,3470.6,0.814]
[1719853533754,0.03939037,3471.1,3470.3,2.88158]
[1719853533755,0.03939037,3471.1,3470.8,0.814]
[1719853535668,0.03939037,3471.1,3470.2,2.3844]
[1719853535669,2.3419,3471.0,3470.2,2.3844]
[1719853535863,0.06201139,3470.9,3470.5,0.814]
[1719853536069,0.10127881,3470.9,3470.5,0.814]
[1719853536267,0.10127881,3470.9,3470.0,2.4334]
[1719853536431,0.10127881,3470.9,3470.3,0.814]
[1719853536628,0.37006571,3470.9,3470.3,0.814]
[1719853537134,2.2578,3470.8,3470.3,0.814]
[1719853537466,0.10119997,3470.7,3470.3,0.814]
[1719853538831,0.10119997,3470.7,3470.5,0.814]
[1719853543186,0.03918858,3470.7,3470.5,0.814]
[1719853546822,0.03918858,3470.7,3470.0,8.0]
[1719853546823,2.2841,3470.6,3470.0,8.0]
[1719853546998,0.10106922,3470.5,3470.0,8.0]
[1719853547330,0.10106922,3470.5,3470.1,0.814]
[1719853548224,0.10106922,3470.5,3470.0,8.0]
[1719853548429,0.10106922,3470.5,3470.0,8.814]
[1719853549601,2.325,3470.4,3470.0,8.0]
[1719853549806,0.06201139,3470.3,3470.1,0.814]
[1719853549998,0.10099212,3470.3,3470.1,0.814]
[1719853551533,0.10099212,3470.3,3470.0,8.0]
[1719853551746,0.34359133,3470.3,3470.0,8.0]
[1719853552032,0.06201139,3470.2,3470.0,8.0]
[1719853552722,0.03895771,3470.1,3470.0,8.0]
[1719853553041,0.06201139,3470.3,3470.0,8.814]
[1719853553595,0.03896922,3470.2,3470.0,8.814]
[1719853554014,5.36481139,3470.7,3470.0,8.814]
[1719853554222,0.03895771,3470.1,3470.0,8.0]
[1719853554507,0.06201139,3470.5,3470.1,0.814]
[1719853555402,0.06201139,3470.6,3470.1,0.814]
[1719853556353,0.06201139,3470.6,3470.0,10.88184]
[1719853556354,0.06201139,3470.6,3470.3,0.814]
[1719853557301,5.36481139,3470.7,3470.3,0.814]
[1719853559738,2.3028,3470.7,3470.3,0.814]
[1719853559940,2.36481139,3470.7,3470.3,0.814]
[1719853560439,2.3028,3470.7,3470.3,0.814]
[1719853560641,5.2579,3471.0,3470.6,0.814]
[1719853560828,3.0,3471.1,3470.8,0.814]
[1719853561137,3.0,3471.1,3471.0,0.814]
[1719853561440,2.2579,3471.2,3470.8,0.814]
[1719853561650,2.31991139,3471.2,3470.8,0.814]
[1719853562519,2.2579,3471.2,3470.8,0.814]
[1719853563830,0.06201139,3471.4,3471.0,0.814]
[1719853565505,2.4925,3471.5,3471.3,0.814]
[1719853565747,1.86,3471.7,3471.3,0.814]
[1719853565957,1.86,3471.7,3471.5,0.814]
[1719853566311,1.86,3471.7,3471.5,3.69457]
[1719853566545,0.03796843,3471.6,3471.5,3.69457]
[1719853566760,0.03796843,3471.6,3471.3,5.2007]
[1719853566917,0.03796843,3471.6,3471.5,0.814]
[1719853567253,0.03796843,3471.6,3471.5,3.69459]
[1719853567553,7.48,3472.0,3471.5,3.69459]
[1719853567847,0.03800294,3471.9,3471.8,0.814]
[1719853568150,0.03800294,3471.9,3471.3,5.20071]
[1719853568315,0.10001433,3471.9,3471.7,0.814]
[1719853568515,2.3163,3471.8,3470.9,2.3925]
[1719853568768,2.3163,3471.8,3471.3,0.814]
[1719853568769,0.06201139,3471.7,3471.3,0.814]
[1719853568914,0.09999133,3471.7,3471.3,0.814]
[1719853569338,0.09999133,3471.7,3470.6,5.34593]
[1719853569339,1.14613915,3471.7,3470.6,5.34593]
[1719853569577,0.55,3471.6,3470.5,2.88141]
[1719853569880,0.10006736,3471.5,3470.9,0.814]
[1719853570052,0.55,3471.4,3470.9,0.814]
[1719853570272,0.03801236,3471.3,3470.9,0.814]
[1719853570456,0.10002375,3471.3,3471.1,0.814]
[1719853570858,0.03801236,3471.3,3471.1,0.814]
[1719853571043,0.55,3471.6,3471.1,0.814]
[1719853571245,0.03803537,3471.5,3471.1,0.814]
[1719853573787,0.10004676,3471.5,3471.1,0.814]
[1719853574146,0.10004676,3471.5,3470.3,2.4646]
[1719853574385,2.343,3471.3,3470.3,2.4646]
[1719853574565,0.06201139,3471.2,3470.2,2.88167]
[1719853574876,0.10001225,3471.2,3470.7,0.814]
[1719853575267,3.10001225,3471.2,3470.7,0.814]
[1719853576482,3.10001225,3471.2,3470.9,0.814]
[1719853576860,3.0,3471.2,3471.1,0.814]
[1719853577061,0.03800086,3471.2,3471.1,0.814]
[1719853577266,3.06201139,3471.5,3471.1,0.814]
[1719853577458,3.06201139,3471.5,3471.3,0.814]
[1719853577459,0.03802386,3471.4,3471.3,0.814]
[1719853578889,0.03802386,3471.4,3470.6,5.3269]
[1719853579183,0.06201139,3471.3,3471.2,0.814]
[1719853579389,0.10003525,3471.4,3471.2,0.814]
[1719853579682,0.03801236,3471.3,3471.2,0.814]
[1719853579891,2.4379,3471.2,3470.3,2.4876]
[1719853580186,0.06201139,3471.1,3470.3,5.36914]
[1719853581250,0.06201139,3471.1,3470.1,4.83667]
[1719853581699,0.06201139,3471.1,3470.2,2.88166]
[1719853583688,0.03792269,3471.0,3470.1,4.83667]
[1719853584077,0.03792269,3471.0,3470.2,2.88166]
[1719853584274,0.03792269,3471.0,3470.3,1.813783]
[1719853585516,0.03792269,3471.0,3470.3,4.695373]
[1719853585710,0.03792269,3471.0,3470.5,7.16392]
[1719853586087,0.06201139,3471.4,3470.5,7.16392]
[1719853586287,0.03795721,3471.3,3470.5,7.16392]
[1719853586490,0.03795721,3471.3,3470.6,0.89139493]
[1719853586809,0.03795721,3471.3,3470.7,2.88125]
[1719853587025,0.03795721,3471.3,3470.8,2.88114]
[1719853587312,0.03666816,3471.2,3470.8,2.88114]
[1719853587511,0.03666816,3471.2,3470.9,4.83609]
[1719853587690,3.0,3471.5,3471.0,0.77748489]
[1719853587887,0.03665666,3471.1,3471.0,0.77748489]
[1719853588121,3.0,3471.5,3471.0,0.77748489]
[1719853588298,0.03665666,3471.1,3471.0,0.77748489]
[1719853588491,3.0,3471.5,3471.0,2.93862727]
[1719853588688,0.03669141,3471.1,3471.0,2.93862727]
[1719853588894,3.0,3471.5,3471.0,2.93862727]
[1719853589121,3.0,3471.5,3471.1,2.88092]
[1719853589297,5.4246,3471.9,3471.3,1.955]
[1719853589817,2.4246,3471.9,3471.3,1.955]
[1719853591236,2.48661139,3471.9,3471.3,1.955]
[1719853591435,3.22127253,3471.9,3470.8,2.88111]
[1719853591846,3.0,3471.8,3470.8,2.88111]
[1719853592050,0.06201139,3471.7,3470.8,2.88111]
[1719853593158,0.06201139,3471.7,3470.9,2.88109]
[1719853593829,0.06201139,3471.7,3471.0,0.0576143]
[1719853594026,0.06201139,3471.7,3471.0,0.87874473]
[1719853594234,3.06201139,3471.8,3471.0,0.87874473]
[1719853594632,0.06201139,3471.7,3471.0,0.0576143]
[1719853595424,0.06201139,3471.7,3470.9,2.88109]
[1719853596566,0.03677596,3471.6,3470.9,2.88109]
[1719853597448,0.03677596,3471.6,3470.7,5.2726]
[1719853597653,0.03677596,3471.6,3470.7,8.15378]
[1719853597943,0.03677596,3471.6,3470.8,3.891998]
[1719853598244,2.2536,3471.5,3470.9,0.0576143]
[1719853598572,0.03675295,3471.4,3470.9,0.0576143]
[1719853600165,0.03675295,3471.4,3470.9,2.9386443]
[1719853600586,2.43841139,3471.8,3470.9,2.9386443]
[1719853600785,0.03674145,3471.3,3470.9,2.9386443]
[1719853600991,2.43841139,3471.8,3471.0,0.53300443]
[1719853601305,0.03678618,3471.7,3470.9,2.9386443]
[1719853603020,0.03678618,3471.7,3471.0,2.88099]
[1719853603308,0.03678618,3471.7,3471.0,2.93860426]
[1719853604188,0.03678618,3471.7,3471.0,2.88099]
[1719853604575,0.03678618,3471.7,3470.8,0.05761403]
[1719853604774,0.03678618,3471.7,3470.9,0.7285234]
[1719853605017,0.03678618,3471.7,3471.0,0.05761425]
[1719853605406,0.09879757,3471.7,3470.9,0.7285234]
[1719853605607,0.06201139,3471.7,3470.7,2.3914]
[1719853605783,0.03678885,3471.6,3470.7,5.27265]
[1719853605989,2.4825,3472.1,3470.7,5.27265]
[1719853606292,2.2588,3471.9,3470.6,1.955]
[1719853606496,2.2588,3471.7,3470.6,1.955]
[1719853606733,0.03677488,3471.6,3470.6,2.968256]
[1719853607027,2.4169,3471.5,3470.6,2.968256]
[1719853607201,0.06201139,3471.4,3470.6,2.968256]
[1719853607396,0.09874396,3471.4,3470.6,2.968256]
[1719853611430,2.253,3471.3,3470.6,2.968256]
[1719853611796,0.03669283,3471.2,3471.1,0.815]
[1719853612212,2.253,3471.3,3471.1,0.815]
[1719853612397,0.03668253,3471.2,3471.1,0.815]
[1719853612598,2.253,3471.3,3471.1,0.815]
[1719853612820,0.03668253,3471.2,3471.1,0.815]
[1719853613198,2.253,3471.3,3471.1,0.815]
[1719853613399,0.03666979,3471.2,3471.1,0.815]
[1719853613799,2.253,3471.3,3471.1,0.815]
[1719853614022,0.03666979,3471.2,3471.1,0.815]
[1719853614419,2.253,3471.3,3471.1,0.815]
[1719853614621,0.0366685,3471.2,3471.1,0.815]
[1719853615014,2.253,3471.3,3471.1,0.815]
[1719853615215,0.03665562,3471.2,3471.1,0.815]
[1719853615616,2.312,3471.5,3471.1,0.815]
[1719853615817,0.0366778,3471.2,3470.7,2.93887186]
[1719853616133,3.06201139,3471.7,3471.1,0.815]
[1719853616311,3.06201139,3471.7,3471.5,0.815]
[1719853616641,3.0,3471.6,3471.5,0.815]
[1719853616841,0.06201139,3471.7,3471.5,0.815]
[1719853617134,0.06201139,3471.7,3471.3,0.815]
[1719853617438,2.2578,3471.6,3471.3,0.815]
[1719853623458,2.3725,3471.8,3471.5,0.815]
[1719853624957,3.06201139,3472.0,3471.5,0.815]
[1719853625133,2.3725,3472.1,3471.9,0.815]
[1719853626529,0.0368232,3472.0,3471.9,0.815]
[1719853627375,1.86,3472.2,3471.9,0.815]
[1719853627666,0.03683587,3472.0,3471.9,0.815]
[1719853627871,1.92201139,3472.2,3471.9,0.815]
[1719853628070,0.03683587,3472.0,3471.9,0.815]
[1719853628240,1.92201139,3472.2,3471.9,0.815]
[1719853628436,0.03683587,3472.0,3471.9,0.815]
[1719853628661,1.92201139,3472.2,3471.9,0.815]
[1719853628861,0.03683587,3472.0,3471.9,0.815]
[1719853629061,1.92201139,3472.2,3471.9,0.815]
[1719853629465,1.86,3472.2,3471.9,0.815]
[1719853629675,0.03684737,3472.1,3471.9,0.815]
[1719853636192,3.0,3472.3,3471.9,0.815]
[1719853636395,3.0,3472.3,3472.2,0.815]
[1719853636797,9.8188,3472.9,3472.2,3.69494]
[1719853636798,0.06201139,3472.8,3472.2,3.69494]
[1719853636961,3.0,3472.8,3472.7,0.815]
[1719853637369,3.0,3472.8,3472.5,0.815]
[1719853639100,3.0,3472.8,3472.7,0.815]
[1719853640366,2.3388,3472.9,3472.7,0.815]
[1719853640906,5.36151139,3473.2,3472.7,0.815]
[1719853641123,5.36151139,3473.2,3472.9,0.815]
[1719853641424,0.06201139,3473.1,3472.9,0.815]
[1719853641561,0.09866263,3473.1,3472.9,0.815]
[1719853642067,0.03665124,3473.1,3472.9,0.815]
[1719853643809,0.09866263,3473.1,3472.9,0.815]
[1719853645321,0.33847889,3473.1,3472.7,0.815]
[1719853645622,3.33847889,3473.1,3472.7,0.815]
[1719853645922,3.33847889,3473.1,3472.1,2.4015]
[1719853645923,3.33847889,3473.1,3472.4,0.815]
[1719853649289,3.33847889,3473.1,3472.1,2.4015]
[1719853649494,3.33847889,3473.1,3472.3,0.815]
[1719853649716,0.64529789,3473.0,3472.3,0.815]
[1719853649928,0.09884006,3472.9,3472.3,0.815]
[1719853653840,0.09884006,3472.9,3472.5,0.815]
[1719853654797,2.4842,3472.8,3472.5,0.815]
[1719853654999,5.52107917,3472.8,3472.5,0.815]
[1719853669795,6.07318709,3472.8,3472.1,2.4015]
[1719853670002,6.07318709,3472.8,3472.4,0.815]
[1719853671369,5.52107917,3472.8,3472.4,0.815]
[1719853679172,8.40059917,3472.8,3472.4,0.815]
[1719853679391,5.52107917,3472.8,3472.4,0.815]
[1719853679593,5.52107917,3472.8,3472.6,0.815]
[1719853680135,8.40063917,3472.8,3472.6,0.815]
[1719853680506,0.03687917,3472.8,3472.6,0.815]
[1719853680841,5.27154,3473.3,3472.6,4.06415]
[1719853681011,2.87921,3473.2,3473.0,0.815]
[1719853681513,2.3924,3473.3,3473.0,0.815]
[1719853681691,2.87895,3473.5,3473.2,0.815]
[1719853681900,2.87895,3473.5,3473.4,0.815]
[1719853683025,5.87895,3473.5,3473.4,0.815]
[1719853685211,3.0,3473.5,3473.4,0.815]
[1719853685453,3.0,3473.7,3473.4,0.815]
[1719853686121,5.87879,3473.7,3473.4,0.815]
[1719853686448,0.03595765,3473.6,3473.4,0.815]
[1719853686966,2.91482765,3473.6,3473.4,0.815]
[1719853689037,0.03595765,3473.6,3473.4,0.815]
[1719853694994,2.97683904,3473.6,3473.4,0.815]
[1719853696928,2.87894,3473.5,3473.4,0.815]
[1719853697141,2.87894,3473.5,3472.9,0.05758084]
[1719853697142,2.87905,3473.4,3472.7,2.3611]
[1719853697288,2.47241139,3473.3,3472.7,2.3611]
[1719853697488,0.03594375,3473.3,3473.1,0.815]
[1719853697730,2.87894,3473.5,3473.1,0.815]
[1719853698028,2.87894,3473.5,3472.7,2.885195]
[1719853698029,2.87894,3473.5,3473.3,0.815]
[1719853698233,0.03595524,3473.4,3473.3,0.815]
[1719853698831,2.91497524,3473.4,3473.3,0.815]
[1719853699036,2.87932,3473.1,3472.7,2.3611]
[1719853699237,2.87932,3473.1,3473.0,0.815]
[1719853700707,2.87932,3473.1,3472.5,2.4614]
[1719853701042,2.87927,3473.1,3473.0,0.815]
[1719853701547,2.87927,3473.1,3471.5,2.3278]
[1719853701548,2.87963,3472.7,3471.5,2.3278]
[1719853701714,2.87963,3472.7,3472.6,0.815]
[1719853702118,2.91551251,3472.7,3472.6,0.815]
[1719853703357,2.87971,3472.6,3472.1,2.3716]
[1719853703651,2.87963,3472.7,3472.5,0.815]
[1719853704417,2.87963,3472.7,3472.1,2.3716]
[1719853704632,2.87968,3472.6,3472.5,0.815]
[1719853705725,2.87978,3472.5,3471.6,2.26]
[1719853705972,2.87996,3472.3,3471.7,0.514055]
[1719853706150,2.87996,3472.3,3472.2,0.815]
[1719853706615,5.75961,3472.5,3472.2,0.815]
[1719853706817,2.87978,3472.5,3472.4,0.815]
[1719853710753,2.87978,3472.5,3471.7,0.514055]
[1719853710754,0.06201139,3472.5,3471.7,0.514055]
[1719853710955,2.88009,3472.2,3471.6,2.26]
[1719853711158,2.88009,3472.2,3472.1,0.815]